[Event "*** Titled Tuesday Blitz"]
[Site "Chess.com"]
[Date "2021.02.02"]
[Round "9"]
[White "floplover"]
[Black "onnoelgersma"]
[Result "0-1"]
[WhiteElo "2328"]
[BlackElo "2474"]
[TimeControl "180+1"]
[EndTime "11:44:55 PST"]
[Termination "onnoelgersma won by resignation"]

1. d4 {[%clk 0:02:53.5]} 1... d5 {[%clk 0:02:59]} 2. c4 {[%clk 0:02:53.8]} 2...
e6 {[%clk 0:02:59.3]} 3. Nf3 {[%clk 0:02:54.2]} 3... Nf6 {[%clk 0:02:59.4]} 4.
Nc3 {[%clk 0:02:54.7]} 4... a6 {[%clk 0:02:59.4]} 5. cxd5 {[%clk 0:02:49.5]}
5... exd5 {[%clk 0:03:00.3]} 6. Bf4 {[%clk 0:02:49.5]} 6... Be6 {[%clk
0:03:00.8]} 7. e3 {[%clk 0:02:48.8]} 7... Bd6 {[%clk 0:03:01.4]} 8. Bxd6 {[%clk
0:02:47.9]} 8... Qxd6 {[%clk 0:03:02.3]} 9. Bd3 {[%clk 0:02:47.9]} 9... O-O
{[%clk 0:03:02.4]} 10. O-O {[%clk 0:02:48.5]} 10... Nbd7 {[%clk 0:03:02.9]} 11.
h3 {[%clk 0:02:48.5]} 11... Rfe8 {[%clk 0:03:02.5]} 12. Qc2 {[%clk 0:02:42.7]}
12... Rad8 {[%clk 0:02:58.9]} 13. b4 {[%clk 0:02:35.5]} 13... c6 {[%clk
0:02:53.8]} 14. a4 {[%clk 0:02:32.6]} 14... Ra8 {[%clk 0:02:52.4]} 15. Rfc1
{[%clk 0:02:27.2]} 15... Rec8 {[%clk 0:02:47.7]} 16. Rab1 {[%clk 0:02:21.4]}
16... b6 {[%clk 0:02:40.9]} 17. a5 {[%clk 0:02:00.8]} 17... bxa5 {[%clk
0:02:35.8]} 18. bxa5 {[%clk 0:02:01.1]} 18... c5 {[%clk 0:02:36.7]} 19. Qa2
{[%clk 0:01:37.6]} 19... c4 {[%clk 0:02:31.9]} 20. Bc2 {[%clk 0:01:31.2]} 20...
Rab8 {[%clk 0:02:31.6]} 21. Na4 {[%clk 0:01:23.3]} 21... Ne4 {[%clk 0:02:10.6]}
22. Rb2 {[%clk 0:00:16]} 22... Rxb2 {[%clk 0:02:03.9]} 23. Qxb2 {[%clk
0:00:16.9]} 23... Rb8 {[%clk 0:02:00.2]} 24. Qa1 {[%clk 0:00:17.4]} 24... f5
{[%clk 0:01:56.3]} 25. Bxe4 {[%clk 0:00:17.1]} 25... fxe4 {[%clk 0:01:55.6]} 26.
Nd2 {[%clk 0:00:17.6]} 26... Qb4 {[%clk 0:01:51]} 27. Qa2 {[%clk 0:00:15.8]}
27... Qxa5 {[%clk 0:01:42.8]} 28. Kf1 {[%clk 0:00:14.2]} 28... Rb4 {[%clk
0:01:36.3]} 29. Ra1 {[%clk 0:00:12.9]} 29... Nb6 {[%clk 0:01:33.6]} 30. Nc5
{[%clk 0:00:13]} 30... Qxa2 {[%clk 0:01:32.3]} 31. Rxa2 {[%clk 0:00:13.9]} 31...
Bc8 {[%clk 0:01:32.4]} 32. Nxa6 {[%clk 0:00:13.3]} 32... Bxa6 {[%clk 0:01:30]}
33. Rxa6 {[%clk 0:00:14.2]} 33... c3 {[%clk 0:01:29.7]} 34. Nxe4 {[%clk
0:00:07]} 34... c2 {[%clk 0:01:26.2]} 35. Ke2 {[%clk 0:00:07.9]} 35... c1=Q
{[%clk 0:01:25.3]} 0-1

[Event "*** Titled Tuesday Blitz"]
[Site "Chess.com"]
[Date "2021.02.02"]
[Round "9"]
[White "Yaryi_sergey"]
[Black "AniJak"]
[Result "1/2-1/2"]
[WhiteElo "2455"]
[BlackElo "2295"]
[TimeControl "180+1"]
[EndTime "11:44:57 PST"]
[Termination "Game drawn by agreement"]

1. Nf3 {[%clk 0:03:00.9]} 1... d5 {[%clk 0:02:58.9]} 2. g3 {[%clk 0:02:58.1]}
2... Nf6 {[%clk 0:02:57.7]} 3. Bg2 {[%clk 0:02:58.3]} 3... g6 {[%clk 0:02:58.1]}
4. d3 {[%clk 0:02:56.6]} 4... Bg7 {[%clk 0:02:58.5]} 5. O-O {[%clk 0:02:57.1]}
5... O-O {[%clk 0:02:58.1]} 6. c4 {[%clk 0:02:47.2]} 6... c6 {[%clk 0:02:54.9]}
7. Nbd2 {[%clk 0:02:45.2]} 7... Bg4 {[%clk 0:02:52.1]} 8. h3 {[%clk 0:02:43.4]}
8... Bxf3 {[%clk 0:02:50.8]} 9. Nxf3 {[%clk 0:02:42.5]} 9... Nbd7 {[%clk
0:02:51.4]} 10. Qc2 {[%clk 0:02:41.6]} 10... e5 {[%clk 0:02:50.9]} 11. Bg5
{[%clk 0:02:36.4]} 11... Rc8 {[%clk 0:02:37.3]} 12. Rac1 {[%clk 0:02:34.9]}
12... dxc4 {[%clk 0:02:22.3]} 13. dxc4 {[%clk 0:02:31.3]} 13... Qe7 {[%clk
0:02:22.5]} 14. Nd2 {[%clk 0:02:26.1]} 14... Nc5 {[%clk 0:02:17]} 15. b4 {[%clk
0:02:19.2]} 15... Ne6 {[%clk 0:02:17]} 16. Bxf6 {[%clk 0:02:19.5]} 16... Qxf6
{[%clk 0:02:16.9]} 17. Ne4 {[%clk 0:02:17.3]} 17... Qe7 {[%clk 0:02:16.6]} 18.
c5 {[%clk 0:02:17.3]} 18... f5 {[%clk 0:02:12.2]} 19. Nd6 {[%clk 0:02:16.5]}
19... Rcd8 {[%clk 0:02:12.5]} 20. Qb3 {[%clk 0:02:12.2]} 20... Kh8 {[%clk
0:02:11.5]} 21. e3 {[%clk 0:02:07.5]} 21... b6 {[%clk 0:01:58.3]} 22. Qc4 {[%clk
0:01:47.2]} 22... e4 {[%clk 0:01:55.8]} 23. Rfd1 {[%clk 0:01:45.1]} 23... bxc5
{[%clk 0:01:50.1]} 24. bxc5 {[%clk 0:01:43.2]} 24... Be5 {[%clk 0:01:45.2]} 25.
Qa6 {[%clk 0:01:42.8]} 25... Qc7 {[%clk 0:01:01]} 26. Qc4 {[%clk 0:01:30.6]}
26... Nxc5 {[%clk 0:00:51.6]} 27. Qxc5 {[%clk 0:01:30.1]} 27... Rxd6 {[%clk
0:00:45.8]} 28. Rxd6 {[%clk 0:01:27.2]} 28... Qxd6 {[%clk 0:00:44.6]} 29. Qxd6
{[%clk 0:01:23.7]} 29... Bxd6 {[%clk 0:00:45.5]} 30. Rxc6 {[%clk 0:01:23.9]}
30... Bb4 {[%clk 0:00:45.4]} 31. Rc7 {[%clk 0:01:19.3]} 31... a5 {[%clk
0:00:45.2]} 32. Bf1 {[%clk 0:01:19]} 32... Rd8 {[%clk 0:00:32.9]} 33. Rc2 {[%clk
0:01:14]} 33... Rd2 {[%clk 0:00:31.8]} 34. Rxd2 {[%clk 0:01:11.3]} 34... Bxd2
{[%clk 0:00:32.7]} 35. Bc4 {[%clk 0:01:10.6]} 35... Kg7 {[%clk 0:00:32.8]} 36.
Kf1 {[%clk 0:01:10.7]} 36... Kf6 {[%clk 0:00:32.8]} 37. Ke2 {[%clk 0:01:10.7]}
37... Bb4 {[%clk 0:00:33.2]} 38. h4 {[%clk 0:01:09]} 38... h6 {[%clk 0:00:32.9]}
1/2-1/2

[Event "*** Titled Tuesday Blitz"]
[Site "Chess.com"]
[Date "2021.02.02"]
[Round "9"]
[White "Szparu"]
[Black "Alexsur1981"]
[Result "1/2-1/2"]
[WhiteElo "2677"]
[BlackElo "2850"]
[TimeControl "180+1"]
[EndTime "11:45:05 PST"]
[Termination "Game drawn by repetition"]

1. d4 {[%clk 0:02:54.2]} 1... d6 {[%clk 0:02:59.7]} 2. e4 {[%clk 0:02:54]} 2...
g6 {[%clk 0:02:59.4]} 3. Nc3 {[%clk 0:02:53.9]} 3... Bg7 {[%clk 0:02:59.3]} 4.
Bg5 {[%clk 0:02:41.8]} 4... c5 {[%clk 0:02:55.7]} 5. d5 {[%clk 0:02:38]} 5... h6
{[%clk 0:02:51.2]} 6. Bf4 {[%clk 0:02:35.9]} 6... Nf6 {[%clk 0:02:48.9]} 7. Qd2
{[%clk 0:02:31.3]} 7... Nbd7 {[%clk 0:02:43.1]} 8. h3 {[%clk 0:02:26.6]} 8... a6
{[%clk 0:02:38.8]} 9. a4 {[%clk 0:02:25.1]} 9... Rb8 {[%clk 0:02:38.6]} 10. Nf3
{[%clk 0:02:24.6]} 10... g5 {[%clk 0:02:23]} 11. Be3 {[%clk 0:02:17.4]} 11... b5
{[%clk 0:02:21.1]} 12. axb5 {[%clk 0:02:02.9]} 12... axb5 {[%clk 0:02:22]} 13.
e5 {[%clk 0:02:03.2]} 13... dxe5 {[%clk 0:02:18]} 14. Bxb5 {[%clk 0:01:58.5]}
14... O-O {[%clk 0:02:17.9]} 15. h4 {[%clk 0:01:52.9]} 15... Nb6 {[%clk
0:01:23.9]} 16. hxg5 {[%clk 0:01:46.8]} 16... hxg5 {[%clk 0:01:24.4]} 17. Nxg5
{[%clk 0:01:21.1]} 17... Nbxd5 {[%clk 0:01:19.8]} 18. Bd3 {[%clk 0:01:10.7]}
18... Nxe3 {[%clk 0:01:04.2]} 19. Qxe3 {[%clk 0:00:53.7]} 19... Qd4 {[%clk
0:01:04.5]} 20. Qg3 {[%clk 0:00:36.2]} 20... Qf4 {[%clk 0:01:04.4]} 21. Nd5
{[%clk 0:00:30.6]} 21... Nxd5 {[%clk 0:00:54.5]} 22. Bh7+ {[%clk 0:00:29.7]}
22... Kh8 {[%clk 0:00:55]} 23. Bf5+ {[%clk 0:00:24.4]} 23... Kg8 {[%clk
0:00:54.9]} 24. Bh7+ {[%clk 0:00:17.6]} 24... Kh8 {[%clk 0:00:54.6]} 25. Bf5+
{[%clk 0:00:06.9]} 25... Kg8 {[%clk 0:00:52.1]} 26. Bh7+ {[%clk 0:00:04.9]}
1/2-1/2

[Event "*** Titled Tuesday Blitz"]
[Site "Chess.com"]
[Date "2021.02.02"]
[Round "9"]
[White "MasterSonnevanck23"]
[Black "sorrm8thatscheckm8"]
[Result "0-1"]
[WhiteElo "2374"]
[BlackElo "2548"]
[TimeControl "180+1"]
[EndTime "11:45:05 PST"]
[Termination "sorrm8thatscheckm8 won by resignation"]

1. d4 {[%clk 0:02:56.1]} 1... Nf6 {[%clk 0:02:59.3]} 2. c4 {[%clk 0:02:56]} 2...
g6 {[%clk 0:02:59.9]} 3. Nc3 {[%clk 0:02:55.7]} 3... Bg7 {[%clk 0:03:00.4]} 4.
e4 {[%clk 0:02:55.3]} 4... d6 {[%clk 0:03:00.7]} 5. Nf3 {[%clk 0:02:54.8]} 5...
O-O {[%clk 0:03:01.1]} 6. Be2 {[%clk 0:02:52.1]} 6... e5 {[%clk 0:03:01.3]} 7.
Be3 {[%clk 0:02:50.3]} 7... Ng4 {[%clk 0:03:00.2]} 8. Bg5 {[%clk 0:02:48.6]}
8... f6 {[%clk 0:02:59.6]} 9. Bh4 {[%clk 0:02:47.5]} 9... g5 {[%clk 0:02:59.8]}
10. Bg3 {[%clk 0:02:47]} 10... Nc6 {[%clk 0:02:59.1]} 11. d5 {[%clk 0:02:39.5]}
11... Ne7 {[%clk 0:02:58.6]} 12. h4 {[%clk 0:02:36.9]} 12... Ng6 {[%clk
0:02:54.1]} 13. Nd2 {[%clk 0:02:23.3]} 13... Qd7 {[%clk 0:02:24.2]} 14. hxg5
{[%clk 0:01:55.9]} 14... fxg5 {[%clk 0:02:21.8]} 15. Bxg4 {[%clk 0:01:39.3]}
15... Qxg4 {[%clk 0:02:19.9]} 16. Qxg4 {[%clk 0:01:39.2]} 16... Bxg4 {[%clk
0:02:20.8]} 17. Nf1 {[%clk 0:01:33.5]} 17... Nf4 {[%clk 0:02:17.9]} 18. Ne3
{[%clk 0:01:33.4]} 18... Bd7 {[%clk 0:02:17.2]} 19. Kd2 {[%clk 0:01:25.8]} 19...
h5 {[%clk 0:02:14.7]} 20. f3 {[%clk 0:01:23.7]} 20... a6 {[%clk 0:02:12.9]} 21.
Rac1 {[%clk 0:01:00]} 21... b5 {[%clk 0:02:09.6]} 22. Ncd1 {[%clk 0:00:48.8]}
22... h4 {[%clk 0:02:06.2]} 23. Bxf4 {[%clk 0:00:43.5]} 23... exf4 {[%clk
0:02:07.1]} 24. Ng4 {[%clk 0:00:41.8]} 24... Bxg4 {[%clk 0:02:05]} 25. fxg4
{[%clk 0:00:40.6]} 25... f3 {[%clk 0:02:05.9]} 26. gxf3 {[%clk 0:00:34.3]} 26...
Rxf3 {[%clk 0:02:04.6]} 27. Ne3 {[%clk 0:00:26.8]} 27... Bxb2 {[%clk 0:02:00.6]}
28. Rcf1 {[%clk 0:00:18.5]} 28... Rxf1 {[%clk 0:01:54.3]} 29. Rxf1 {[%clk
0:00:17.5]} 29... Be5 {[%clk 0:01:55.2]} 30. Nf5 {[%clk 0:00:15.7]} 30... Bf4+
{[%clk 0:01:54.7]} 31. Kd3 {[%clk 0:00:14.3]} 31... bxc4+ {[%clk 0:01:52.5]} 32.
Kxc4 {[%clk 0:00:13.7]} 32... h3 {[%clk 0:01:52.7]} 33. Ne7+ {[%clk 0:00:08.4]}
33... Kf7 {[%clk 0:01:42.6]} 34. Nf5 {[%clk 0:00:08.2]} 34... h2 {[%clk
0:01:40.5]} 35. Nd4 {[%clk 0:00:05.6]} 35... Rh8 {[%clk 0:01:38.1]} 36. Rh1
{[%clk 0:00:05.2]} 36... Rh4 {[%clk 0:01:36]} 37. Nf3 {[%clk 0:00:04.3]} 37...
Rxg4 {[%clk 0:01:34.2]} 0-1

[Event "*** Titled Tuesday Blitz"]
[Site "Chess.com"]
[Date "2021.02.02"]
[Round "9"]
[White "PriSachu"]
[Black "DenisQ"]
[Result "0-1"]
[WhiteElo "2486"]
[BlackElo "2653"]
[TimeControl "180+1"]
[EndTime "11:45:07 PST"]
[Termination "DenisQ won by resignation"]

1. e4 {[%clk 0:03:00.9]} 1... c6 {[%clk 0:02:59.6]} 2. d4 {[%clk 0:03:00]} 2...
d5 {[%clk 0:03:00.5]} 3. Nd2 {[%clk 0:02:56.3]} 3... dxe4 {[%clk 0:03:00.2]} 4.
Nxe4 {[%clk 0:02:56.5]} 4... Bf5 {[%clk 0:03:00.5]} 5. Ng3 {[%clk 0:02:56.4]}
5... Bg6 {[%clk 0:03:00.6]} 6. h4 {[%clk 0:02:56.7]} 6... h6 {[%clk 0:03:00.5]}
7. Nf3 {[%clk 0:02:56.4]} 7... e6 {[%clk 0:02:57.3]} 8. Bd3 {[%clk 0:02:55.3]}
8... Bxd3 {[%clk 0:02:56.4]} 9. Qxd3 {[%clk 0:02:55.5]} 9... Nf6 {[%clk
0:02:57.3]} 10. Bf4 {[%clk 0:02:45.9]} 10... Qa5+ {[%clk 0:02:55]} 11. Bd2
{[%clk 0:02:43.7]} 11... Bb4 {[%clk 0:02:54.2]} 12. c3 {[%clk 0:02:43.1]} 12...
Be7 {[%clk 0:02:53.4]} 13. c4 {[%clk 0:02:25.9]} 13... Bb4 {[%clk 0:02:51.6]}
14. O-O {[%clk 0:02:11.6]} 14... Bxd2 {[%clk 0:02:47.1]} 15. Nxd2 {[%clk
0:02:09.5]} 15... O-O {[%clk 0:02:44.2]} 16. Nb3 {[%clk 0:01:55.2]} 16... Qc7
{[%clk 0:02:39.5]} 17. f4 {[%clk 0:01:41.3]} 17... Nbd7 {[%clk 0:02:35.3]} 18.
f5 {[%clk 0:01:39.1]} 18... e5 {[%clk 0:02:32.4]} 19. d5 {[%clk 0:01:32.2]}
19... cxd5 {[%clk 0:02:28.7]} 20. cxd5 {[%clk 0:01:32.5]} 20... Rad8 {[%clk
0:02:07.2]} 21. Rac1 {[%clk 0:01:14.7]} 21... Qd6 {[%clk 0:01:57.1]} 22. Rfd1
{[%clk 0:01:09.5]} 22... Nb6 {[%clk 0:01:56]} 23. Nc5 {[%clk 0:01:04.8]} 23...
Nbxd5 {[%clk 0:01:50]} 24. Nxb7 {[%clk 0:00:51.3]} 24... Qb6+ {[%clk 0:01:49.3]}
25. Nc5 {[%clk 0:00:51]} 25... Rc8 {[%clk 0:01:24.1]} 26. Qa3 {[%clk 0:00:44.2]}
26... Nb4 {[%clk 0:01:20.3]} 27. Qe3 {[%clk 0:00:32.1]} 27... Ng4 {[%clk
0:01:18.6]} 28. Qc3 {[%clk 0:00:18.4]} 28... Nxa2 {[%clk 0:01:17.9]} 29. Qc4
{[%clk 0:00:18.9]} 29... Nxc1 {[%clk 0:01:13.4]} 30. Rxc1 {[%clk 0:00:19.8]}
30... Ne3 {[%clk 0:01:09.9]} 31. Qc3 {[%clk 0:00:17.2]} 31... Nd5 {[%clk
0:01:07]} 32. Qc4 {[%clk 0:00:17.3]} 32... Qxb2 {[%clk 0:01:03.7]} 33. Rd1
{[%clk 0:00:12.9]} 33... Ne3 {[%clk 0:01:01.7]} 0-1

[Event "*** Titled Tuesday Blitz"]
[Site "Chess.com"]
[Date "2021.02.02"]
[Round "9"]
[White "Kale36"]
[Black "Tekushka"]
[Result "1/2-1/2"]
[WhiteElo "2280"]
[BlackElo "2437"]
[TimeControl "180+1"]
[EndTime "11:45:07 PST"]
[Termination "Game drawn by agreement"]

1. b3 {[%clk 0:01:57]} 1... d5 {[%clk 0:02:58.4]} 2. Bb2 {[%clk 0:01:57.3]} 2...
Nf6 {[%clk 0:02:58.4]} 3. e3 {[%clk 0:01:57.4]} 3... Bf5 {[%clk 0:02:58.2]} 4.
Nf3 {[%clk 0:01:57.6]} 4... e6 {[%clk 0:02:57.3]} 5. d4 {[%clk 0:01:56.8]} 5...
h6 {[%clk 0:02:54.4]} 6. Bd3 {[%clk 0:01:56.4]} 6... c6 {[%clk 0:02:42.5]} 7.
O-O {[%clk 0:01:48.2]} 7... Bd6 {[%clk 0:02:42.2]} 8. Nbd2 {[%clk 0:01:47.8]}
8... Bxd3 {[%clk 0:02:40.4]} 9. cxd3 {[%clk 0:01:47.9]} 9... O-O {[%clk
0:02:38.3]} 10. Ne5 {[%clk 0:01:48]} 10... Nbd7 {[%clk 0:02:29]} 11. f4 {[%clk
0:01:47.9]} 11... Ne8 {[%clk 0:02:25.9]} 12. Rf3 {[%clk 0:01:42.5]} 12... f6
{[%clk 0:02:21.6]} 13. Ng6 {[%clk 0:01:32.1]} 13... Rf7 {[%clk 0:02:21.7]} 14.
Rg3 {[%clk 0:01:28.9]} 14... f5 {[%clk 0:01:59.8]} 15. Nf3 {[%clk 0:01:25]}
15... Nf8 {[%clk 0:01:54.6]} 16. Nfe5 {[%clk 0:01:23.8]} 16... Bxe5 {[%clk
0:01:36.2]} 17. Nxe5 {[%clk 0:01:23.4]} 17... Rc7 {[%clk 0:01:34.4]} 18. Qh5
{[%clk 0:01:18.1]} 18... Qf6 {[%clk 0:01:34]} 19. Ng6 {[%clk 0:01:10.1]} 19...
Kh7 {[%clk 0:01:22.4]} 20. Nxf8+ {[%clk 0:01:06.5]} 20... Qxf8 {[%clk
0:01:22.5]} 21. Qg6+ {[%clk 0:01:07.1]} 21... Kh8 {[%clk 0:01:21.8]} 22. Qxe6
{[%clk 0:01:06.6]} 22... Re7 {[%clk 0:01:11.6]} 23. Qg6 {[%clk 0:01:04.8]} 23...
Qf6 {[%clk 0:01:11.6]} 24. Qxf6 {[%clk 0:01:01.1]} 24... Nxf6 {[%clk 0:01:11.5]}
25. h3 {[%clk 0:00:55.7]} 25... Rae8 {[%clk 0:01:10.4]} 26. Kf2 {[%clk
0:00:53.9]} 26... Kg8 {[%clk 0:01:05.8]} 27. Re1 {[%clk 0:00:46.3]} 27... Kf7
{[%clk 0:01:04.9]} 28. Rf3 {[%clk 0:00:42.9]} 28... Re6 {[%clk 0:01:01.9]} 29.
Bc1 {[%clk 0:00:41.3]} 29... h5 {[%clk 0:01:00.1]} 30. Rg1 {[%clk 0:00:41.2]}
30... Rh8 {[%clk 0:00:56.9]} 31. g3 {[%clk 0:00:39.9]} 31... Ree8 {[%clk
0:00:53.2]} 32. Kg2 {[%clk 0:00:39.6]} 32... Re6 {[%clk 0:00:52.1]} 33. Bd2
{[%clk 0:00:39.7]} 33... Ree8 {[%clk 0:00:51.8]} 34. Kf2 {[%clk 0:00:39.5]}
34... Re6 {[%clk 0:00:51.9]} 35. Kg2 {[%clk 0:00:39.8]} 35... Ree8 {[%clk
0:00:51.6]} 36. Kf2 {[%clk 0:00:40.2]} 36... Re6 {[%clk 0:00:50.1]} 1/2-1/2

[Event "*** Titled Tuesday Blitz"]
[Site "Chess.com"]
[Date "2021.02.02"]
[Round "9"]
[White "Brave_spirit12"]
[Black "Mbneu"]
[Result "1-0"]
[WhiteElo "2485"]
[BlackElo "2293"]
[TimeControl "180+1"]
[EndTime "11:45:11 PST"]
[Termination "Brave_spirit12 won on time"]

1. e4 {[%clk 0:03:00.9]} 1... c5 {[%clk 0:02:59.8]} 2. c3 {[%clk 0:02:58.7]}
2... Nf6 {[%clk 0:02:59.8]} 3. e5 {[%clk 0:02:58.1]} 3... Nd5 {[%clk 0:03:00.2]}
4. d4 {[%clk 0:02:59]} 4... cxd4 {[%clk 0:03:00.4]} 5. Nf3 {[%clk 0:02:56.9]}
5... b6 {[%clk 0:03:00.4]} 6. cxd4 {[%clk 0:02:54.1]} 6... e6 {[%clk 0:02:59.2]}
7. Nc3 {[%clk 0:02:54.4]} 7... Nxc3 {[%clk 0:02:57.5]} 8. bxc3 {[%clk
0:02:55.3]} 8... Be7 {[%clk 0:02:56.8]} 9. Bd3 {[%clk 0:02:55.1]} 9... Ba6
{[%clk 0:02:56.3]} 10. c4 {[%clk 0:02:49.3]} 10... O-O {[%clk 0:02:46.6]} 11.
Qe2 {[%clk 0:02:41.5]} 11... Nc6 {[%clk 0:02:24.3]} 12. h4 {[%clk 0:02:38.7]}
12... f5 {[%clk 0:02:04.7]} 13. exf6 {[%clk 0:02:34.8]} 13... Bb4+ {[%clk
0:01:53.8]} 14. Kf1 {[%clk 0:02:14.9]} 14... Qxf6 {[%clk 0:01:49.1]} 15. Bg5
{[%clk 0:01:42.8]} 15... Qf7 {[%clk 0:00:37]} 16. Be3 {[%clk 0:01:28.6]} 16...
d5 {[%clk 0:00:27.9]} 17. Bxh7+ {[%clk 0:01:23.1]} 17... Kxh7 {[%clk 0:00:15.4]}
18. Ng5+ {[%clk 0:01:22.4]} 18... Kg8 {[%clk 0:00:15.6]} 19. Nxf7 {[%clk
0:01:22.4]} 19... Bxc4 {[%clk 0:00:15.7]} 20. Ng5 {[%clk 0:01:21.4]} 20... Bc3
{[%clk 0:00:09.9]} 21. Rc1 {[%clk 0:01:19.4]} 21... Bxe2+ {[%clk 0:00:01.6]} 22.
Kxe2 {[%clk 0:01:20.3]} 22... Nxd4+ {[%clk 0:00:01.8]} 23. Kd3 {[%clk
0:01:16.4]} 23... Nb5 {[%clk 0:00:01.6]} 24. a4 {[%clk 0:01:15.1]} 24... d4
{[%clk 0:00:01.9]} 25. axb5 {[%clk 0:01:13.4]} 25... dxe3 {[%clk 0:00:02.1]} 26.
Rxc3 {[%clk 0:01:10.4]} 26... exf2 {[%clk 0:00:02.5]} 27. Rcc1 {[%clk
0:01:10.3]} 27... Rad8+ {[%clk 0:00:02.7]} 28. Ke2 {[%clk 0:01:09.1]} 28... Rf4
{[%clk 0:00:03.2]} 29. Rhd1 {[%clk 0:01:02.1]} 29... Rxd1 {[%clk 0:00:01.8]} 30.
Rxd1 {[%clk 0:01:00.2]} 1-0

[Event "*** Titled Tuesday Blitz"]
[Site "Chess.com"]
[Date "2021.02.02"]
[Round "9"]
[White "Taktikmonster"]
[Black "BairaKovanova"]
[Result "0-1"]
[WhiteElo "2290"]
[BlackElo "2469"]
[TimeControl "180+1"]
[EndTime "11:45:11 PST"]
[Termination "BairaKovanova won on time"]

1. e4 {[%clk 0:03:00.9]} 1... e5 {[%clk 0:02:59.8]} 2. Nf3 {[%clk 0:03:00.4]}
2... Nc6 {[%clk 0:02:59.5]} 3. Bb5 {[%clk 0:03:00.1]} 3... a6 {[%clk 0:02:54.3]}
4. Ba4 {[%clk 0:03:00.4]} 4... Nge7 {[%clk 0:02:53.5]} 5. O-O {[%clk 0:02:59.2]}
5... g6 {[%clk 0:02:54]} 6. c3 {[%clk 0:02:59.6]} 6... Bg7 {[%clk 0:02:54.5]} 7.
d4 {[%clk 0:03:00.2]} 7... exd4 {[%clk 0:02:55.1]} 8. cxd4 {[%clk 0:03:01.1]}
8... b5 {[%clk 0:02:55.4]} 9. Bb3 {[%clk 0:03:00.1]} 9... d6 {[%clk 0:02:53.6]}
10. Nc3 {[%clk 0:03:00.4]} 10... O-O {[%clk 0:02:52.9]} 11. Nd5 {[%clk
0:03:00.9]} 11... Na5 {[%clk 0:02:51.2]} 12. Bg5 {[%clk 0:02:57.5]} 12... Nac6
{[%clk 0:02:46.8]} 13. Rc1 {[%clk 0:02:49.9]} 13... h6 {[%clk 0:02:32]} 14. Bh4
{[%clk 0:01:59.5]} 14... g5 {[%clk 0:02:30.7]} 15. Nxg5 {[%clk 0:01:59.5]} 15...
Ng6 {[%clk 0:02:26.2]} 16. Ne6 {[%clk 0:01:12.5]} 16... Qxh4 {[%clk 0:02:22.8]}
17. Nxf8 {[%clk 0:01:12.9]} 17... Nge7 {[%clk 0:01:44.8]} 18. Ng6 {[%clk
0:00:55.1]} 18... Nxg6 {[%clk 0:01:31.7]} 19. Rxc6 {[%clk 0:00:55.3]} 19... Be6
{[%clk 0:01:25.8]} 20. Nxc7 {[%clk 0:00:49]} 20... Bxb3 {[%clk 0:01:24.5]} 21.
Qxb3 {[%clk 0:00:44]} 21... Rc8 {[%clk 0:01:21.6]} 22. Rfc1 {[%clk 0:00:16.9]}
22... Bxd4 {[%clk 0:01:19.4]} 23. Qg3 {[%clk 0:00:07.3]} 23... Qh5 {[%clk
0:01:04.6]} 24. Rxd6 {[%clk 0:00:05.2]} 24... Be5 {[%clk 0:00:57.5]} 25. Rxg6+
{[%clk 0:00:04.7]} 25... fxg6 {[%clk 0:00:57.4]} 26. Qb3+ {[%clk 0:00:04.9]}
26... Kh7 {[%clk 0:00:51.7]} 0-1

[Event "*** Titled Tuesday Blitz"]
[Site "Chess.com"]
[Date "2021.02.02"]
[Round "9"]
[White "SkippingLaptop"]
[Black "dianamirza"]
[Result "0-1"]
[WhiteElo "2061"]
[BlackElo "1920"]
[TimeControl "180+1"]
[EndTime "11:45:12 PST"]
[Termination "dianamirza won by checkmate"]

1. c4 {[%clk 0:03:00.9]} 1... c5 {[%clk 0:02:55.9]} 2. g3 {[%clk 0:02:57.2]}
2... Nc6 {[%clk 0:02:56.1]} 3. Bg2 {[%clk 0:02:56.5]} 3... g6 {[%clk 0:02:49.8]}
4. Nf3 {[%clk 0:02:56.8]} 4... Bg7 {[%clk 0:02:50.2]} 5. O-O {[%clk 0:02:57.1]}
5... e6 {[%clk 0:02:50.7]} 6. Nc3 {[%clk 0:02:56.3]} 6... Nge7 {[%clk
0:02:51.6]} 7. d3 {[%clk 0:02:54]} 7... O-O {[%clk 0:02:49.9]} 8. Rb1 {[%clk
0:02:53.3]} 8... Rb8 {[%clk 0:02:48]} 9. a3 {[%clk 0:02:52.6]} 9... a6 {[%clk
0:02:46.6]} 10. Bd2 {[%clk 0:02:53]} 10... b5 {[%clk 0:02:44.2]} 11. cxb5 {[%clk
0:02:53.4]} 11... axb5 {[%clk 0:02:45.1]} 12. b4 {[%clk 0:02:50.5]} 12... c4
{[%clk 0:02:35.4]} 13. dxc4 {[%clk 0:02:42.2]} 13... bxc4 {[%clk 0:02:36.2]} 14.
e3 {[%clk 0:02:36.3]} 14... d5 {[%clk 0:02:36.3]} 15. Ne2 {[%clk 0:02:31.5]}
15... Na7 {[%clk 0:02:28.4]} 16. Bc3 {[%clk 0:02:26.1]} 16... Nb5 {[%clk
0:02:27.1]} 17. Bxg7 {[%clk 0:02:24.6]} 17... Kxg7 {[%clk 0:02:28]} 18. Nfd4
{[%clk 0:02:24.6]} 18... Nxa3 {[%clk 0:02:23.7]} 19. Rb2 {[%clk 0:02:18.6]}
19... Bd7 {[%clk 0:02:12.4]} 20. Nc3 {[%clk 0:02:11.8]} 20... Nc6 {[%clk
0:01:50.5]} 21. Qd2 {[%clk 0:02:01.3]} 21... Nxd4 {[%clk 0:01:43.4]} 22. Qxd4+
{[%clk 0:02:02.2]} 22... Qf6 {[%clk 0:01:37.5]} 23. Ra1 {[%clk 0:01:59.7]} 23...
Qxd4 {[%clk 0:01:34.3]} 24. exd4 {[%clk 0:02:00.5]} 24... Nb5 {[%clk 0:01:32.4]}
25. Nxb5 {[%clk 0:02:00]} 25... Bxb5 {[%clk 0:01:33.3]} 26. Ra7 {[%clk
0:01:57.6]} 26... Ra8 {[%clk 0:01:29]} 27. Rb7 {[%clk 0:01:55.7]} 27... Ra1+
{[%clk 0:01:27.6]} 28. Bf1 {[%clk 0:01:54.9]} 28... c3 {[%clk 0:01:26]} 29. Rc2
{[%clk 0:01:39.6]} 29... Bxf1 {[%clk 0:01:22.6]} 30. f4 {[%clk 0:01:33.5]} 30...
Bd3+ {[%clk 0:01:22.1]} 31. Kf2 {[%clk 0:01:34.4]} 31... Bxc2 {[%clk 0:01:22.2]}
32. Rc7 {[%clk 0:01:34.3]} 32... Ra3 {[%clk 0:01:16.2]} 33. g4 {[%clk
0:01:32.4]} 33... Be4 {[%clk 0:01:14.9]} 34. h4 {[%clk 0:01:30.2]} 34... c2
{[%clk 0:01:14.8]} 35. f5 {[%clk 0:01:28.3]} 35... Rf3+ {[%clk 0:01:14.5]} 36.
Ke2 {[%clk 0:01:27.7]} 36... gxf5 {[%clk 0:01:11]} 37. gxf5 {[%clk 0:01:28.6]}
37... exf5 {[%clk 0:01:11.1]} 38. b5 {[%clk 0:01:25.4]} 38... Rb3 {[%clk
0:01:07.5]} 39. Rc5 {[%clk 0:01:21.6]} 39... Rb8 {[%clk 0:01:04.8]} 40. b6
{[%clk 0:01:22.5]} 40... R3xb6 {[%clk 0:01:04.6]} 41. Ke3 {[%clk 0:01:19.5]}
41... Rb3+ {[%clk 0:01:04.4]} 42. Kf4 {[%clk 0:01:19.8]} 42... Rb1 {[%clk
0:01:04.5]} 43. Ke5 {[%clk 0:01:20.7]} 43... c1=Q {[%clk 0:01:04.2]} 44. Rxc1
{[%clk 0:01:20.3]} 44... Rxc1 {[%clk 0:01:05.1]} 45. h5 {[%clk 0:01:20.3]} 45...
Re8+ {[%clk 0:01:04.2]} 46. Kd6 {[%clk 0:01:20.1]} 46... Re6+ {[%clk 0:00:57.4]}
47. Kd7 {[%clk 0:01:19.8]} 47... Rb1 {[%clk 0:00:54.6]} 48. h6+ {[%clk
0:01:20.7]} 48... Kxh6 {[%clk 0:00:52.9]} 49. Kd8 {[%clk 0:01:20.4]} 49... Ra6
{[%clk 0:00:44.7]} 50. Kd7 {[%clk 0:01:21.3]} 50... Rb7+ {[%clk 0:00:44.3]} 51.
Kc8 {[%clk 0:01:18.6]} 51... Raa7 {[%clk 0:00:44.3]} 52. Kd8 {[%clk 0:01:18.2]}
52... Rb8# {[%clk 0:00:44.7]} 0-1